fUST/lending_fUST_20250608
["ID","MTS","AMOUNT","RATE_DAILY","PERIOD"]
[364965345,1749360642543,-400.0,0.0002,2]
[364965346,1749360642553,-180.95,0.0002,2]
[364965347,1749360642563,-528.97,0.0002,2]
[364965348,1749360642573,-440.0,0.0002,2]
[364965349,1749360642583,-465.31,0.0002,2]
[364965350,1749360642594,-487.87,0.0002,2]
[364965351,1749360642604,-270.42,0.0002,2]
[364965352,1749360642616,-766.89,0.0002,2]
[364965353,1749360642625,-440.0,0.0002,2]
[364965355,1749360642635,-440.0,0.0002,2]
[364965356,1749360642645,-440.0,0.0002,2]
[364965357,1749360642654,-900.91,0.0002,2]
[364965359,1749360642663,-211.74971962,0.0002,2]
[364965361,1749360642673,-440.0,0.0002,2]
[364965362,1749360642683,-440.0,0.0002,2]
[364965364,1749360642692,-440.0,0.0002,2]
[364965365,1749360642702,-440.0,0.0002,2]
[364965366,1749360642712,-160.0,0.00020122,2]
[364965367,1749360642722,-423.98131849,0.00020122,2]
[364965368,1749360642732,-160.0,0.00020122,2]
[364965369,1749360642742,-229.60437222,0.00020122,2]
[364965370,1749360642752,-842.5625,0.00020122,2]
[364965371,1749360642762,-213.05153702,0.00020122,2]
[364965372,1749360642772,-160.0,0.00020122,2]
[364965373,1749360642782,-167.99,0.00020187,2]
[364965374,1749360642792,-267.528907,0.00020187,2]
[364965375,1749360642801,-1715.0173358,0.00020206,2]
[364965376,1749360642811,-1000.0,0.00020268,2]
[364965377,1749360642821,-1500.0,0.00020268,2]
[364965378,1749360642830,-340.83257723,0.00020273,2]
[364965379,1749360642840,-440.0,0.00020273,2]
[364965380,1749360642850,-457.7642072,0.00020273,2]
[364965381,1749360642859,-440.0,0.00020273,2]
[364965382,1749360642869,-390.0,0.00020273,2]
[364965383,1749360642880,-380.0,0.00020273,2]
[364965384,1749360642889,-440.0,0.00020273,2]
[364965385,1749360642898,-440.0,0.00020273,2]
[364965386,1749360642908,-440.0,0.00020273,2]
[364965387,1749360642917,-440.0,0.00020273,2]
[364965388,1749360642928,-538.42606361,0.00020273,2]
[364965389,1749360642938,-440.0,0.00020273,2]
[364965390,1749360642947,-453.88409828,0.00020273,2]
[364965391,1749360642957,-440.0,0.00020273,2]
[364965392,1749360642967,-440.0,0.00020273,2]
[364965393,1749360642976,-440.0,0.00020273,2]
[364965394,1749360642985,-440.0,0.00020273,2]
[364965395,1749360642994,-440.0,0.00020273,2]
[364965396,1749360643004,-440.0,0.00020273,2]
[364965397,1749360643016,-440.0,0.00020273,2]
[364965398,1749360643025,-440.0,0.00020273,2]
[364965399,1749360643036,-351.94191544,0.00020273,2]
[364965400,1749360643048,-440.0,0.00020273,2]
[364965401,1749360643059,-171.18973206,0.00020273,2]
[364965402,1749360643070,-440.0,0.00020273,2]
[364965403,1749360643079,-440.0,0.00020273,2]
[364965404,1749360643093,-440.0,0.00020273,2]
[364965405,1749360643102,-597.58,0.00020273,2]
[364965406,1749360643112,-440.0,0.00020273,2]
[364965407,1749360643122,-440.0,0.00020273,2]
[364965408,1749360643134,-440.0,0.00020273,2]
[364965410,1749360643143,-300.22930484,0.00020273,2]
[364965414,1749360643280,-763.81059378,0.00019257,2]
[364965420,1749360646388,-440.0,0.00019178,2]
[364965421,1749360646399,-625.89037945,0.00019257,2]
[364965422,1749360796936,150.0,0.000161,2]
[364965423,1749360964995,240.776016,0.00013699,2]
[364965425,1749361009477,-150.0,0.0001611,2]
[364965428,1749361745144,-5000.0,0.00016815,2]
[364965429,1749361745166,-206.01501652,0.00016885,2]
[364965430,1749361745187,-184.046707,0.00016985,2]
[364965431,1749361745210,-354.1059321,0.00016986,2]
[364965442,1749361747402,500.24056671,0.00016855,2]
[364965443,1749361757960,173.0,0.00016438,3]
[364965444,1749361763325,-5000.0,0.00017668,2]
[364965445,1749361763348,-300.0,0.00017846,2]
[364965446,1749361763370,-500.0,0.00017847,2]
[364965447,1749361763391,-347.45859477,0.00017847,2]
[364965448,1749361763413,-500.0,0.00017847,2]
[364965449,1749361763435,-500.0,0.00017847,2]
[364965450,1749361763458,-500.0,0.00017847,2]
[364965451,1749361763481,-500.0,0.00017847,2]
[364965452,1749361763505,-435.62291918,0.00017847,2]
[364965453,1749361763528,-500.0,0.00017847,2]
[364965454,1749361763553,-500.0,0.00017847,2]
[364965455,1749361763575,-332.69306043,0.00017847,2]
[364965456,1749361763600,-500.0,0.00017847,2]
[364965457,1749361763624,-500.0,0.00017847,2]
[364965458,1749361763650,-500.0,0.00017847,2]
[364965459,1749361763679,-500.0,0.00017847,2]
[364965460,1749361763704,-500.0,0.00017847,2]
[364965461,1749361763728,-500.0,0.00017847,2]
[364965462,1749361763753,-500.0,0.00017847,2]
[364965463,1749361763776,-500.0,0.00017847,2]
[364965464,1749361763800,-500.0,0.00017847,2]
[364965465,1749361763822,-415.62724148,0.00017847,2]
[364965466,1749361763846,-500.0,0.00017847,2]
[364965467,1749361763871,-338.76053337,0.00017847,2]
[364965468,1749361763893,-500.0,0.00017847,2]
[364965469,1749361763916,-248.0,0.00017847,2]
[364965470,1749361763938,-500.0,0.00017847,2]
[364965471,1749361763959,-500.0,0.00017847,2]
[364965472,1749361763981,-500.0,0.00017847,2]
[364965473,1749361764005,-500.0,0.00017847,2]
[364965474,1749361764030,-500.0,0.00017847,2]
[364965475,1749361764053,-500.0,0.00017847,2]
[364965476,1749361764076,-500.0,0.00017847,2]
[364965477,1749361764100,-500.0,0.00017847,2]
[364965478,1749361764124,-500.0,0.00017847,2]
[364965479,1749361764146,-500.0,0.00017847,2]
[364965480,1749361764171,-500.0,0.00017847,2]
[364965481,1749361764194,-500.0,0.00017847,2]
[364965482,1749361764215,-300.09276796,0.00017847,2]
[364965483,1749361764238,-589.41342551,0.00017847,2]
[364965484,1749361764260,-500.0,0.00017847,2]
[364965485,1749361764283,-500.0,0.00017847,2]
[364965486,1749361764305,-421.68593407,0.00017847,2]
[364965487,1749361764328,-500.0,0.00017847,2]
[364965488,1749361764351,-500.0,0.00017847,2]
[364965489,1749361764374,-500.0,0.00017847,2]
[364965490,1749361764396,-500.0,0.00017847,2]
[364965491,1749361764420,-500.0,0.00017847,2]
[364965492,1749361764442,-500.0,0.00017847,2]
[364965493,1749361764466,-500.0,0.00017847,2]
[364965494,1749361764490,-500.0,0.00017847,2]
[364965495,1749361764513,-500.0,0.00017847,2]
[364965496,1749361764536,-500.0,0.00017847,2]
[364965497,1749361764560,-589.49747282,0.00017847,2]
[364965498,1749361764582,-500.0,0.00017847,2]
[364965499,1749361764605,-500.0,0.00017847,2]
[364965500,1749361764627,-500.0,0.00017847,2]
[364965501,1749361764650,-500.0,0.00017847,2]
[364965502,1749361764672,-500.0,0.00017847,2]
[364965503,1749361764694,-500.0,0.00017847,2]
[364965504,1749361764716,-500.0,0.00017847,2]
[364965505,1749361764740,-259.18811782,0.00017847,2]
[364965506,1749361764762,-300.0,0.00017848,2]
[364965507,1749361764783,-452.91784459,0.00017851,2]
[364965508,1749361764805,-23895.10574727,0.00017852,2]
[364965521,1749361832273,-5000.0,0.00017674,2]
[364965523,1749361832283,-1004.89425273,0.00017852,2]
[364965525,1749361832293,-343.1681081,0.00018082,2]
[364965527,1749361832302,-1453.54636902,0.000189,2]
[364965529,1749361832312,-686.00693432,0.00019078,2]
[364965531,1749361832322,-177.10593894,0.00019078,2]
[364965533,1749361832332,-300.0,0.00019172,2]
[364965535,1749361832343,-511.46750223,0.00019173,2]
[364965536,1749361832354,-241.0651434,0.00019173,2]
[364965537,1749361832365,-500.0,0.00019173,2]
[364965538,1749361832384,-317.04249122,0.00019177,2]
[364965539,1749361832395,-440.95941722,0.00019178,2]
[364965540,1749361832404,-207.2516467,0.00019178,2]
[364965541,1749361832564,-454.73281423,0.00019178,2]
[364965542,1749361832575,-453.69908247,0.00019178,2]
[364965543,1749361832586,-409.54682402,0.00019178,2]
[364965544,1749361832595,-411.56354347,0.00019178,2]
[364965545,1749361832606,-453.78592043,0.00019178,2]
[364965546,1749361832616,-367.38960875,0.00019178,2]
[364965547,1749361832625,-452.52206794,0.00019178,2]
[364965548,1749361832635,-430.0,0.00019178,2]
[364965549,1749361832645,-271.60993285,0.00019178,2]
[364965550,1749361832655,-452.14384119,0.00019178,2]
[364965551,1749361832665,-430.0,0.00019178,2]
[364965552,1749361832675,-430.0,0.00019178,2]
[364965553,1749361832684,-330.70590416,0.00019178,2]
[364965554,1749361832698,-411.23696511,0.00019178,2]
[364965555,1749361832708,-408.90497436,0.00019178,2]
[364965556,1749361832717,-413.18954357,0.00019178,2]
[364965557,1749361832728,-413.45470705,0.00019178,2]
[364965558,1749361832741,-440.0,0.00019178,2]
[364965559,1749361832751,-403.14301129,0.00019178,2]
[364965560,1749361832760,-440.0,0.00019178,2]
[364965561,1749361832771,-430.0,0.00019178,2]
[364965562,1749361832780,-432.44529643,0.00019178,2]
[364965563,1749361832790,-413.94049186,0.00019178,2]
[364965564,1749361832800,-416.01233734,0.00019178,2]
[364965565,1749361832810,-374.90971732,0.00019178,2]
[364965566,1749361832820,-441.54644311,0.00019178,2]
[364965567,1749361832829,-440.0,0.00019178,2]
[364965568,1749361832839,-408.59242071,0.00019178,2]
[364965569,1749361832851,-312.88741579,0.00019178,2]
[364965570,1749361832861,-424.23650621,0.00019178,2]
[364965571,1749361832873,-435.32756588,0.00019178,2]
[364965572,1749361832884,-430.0,0.00019178,2]
[364965573,1749361832895,-430.0,0.00019178,2]
[364965574,1749361832906,-422.48635995,0.00019178,2]
[364965575,1749361832918,-430.0,0.00019178,2]
[364965576,1749361832929,-417.40424984,0.00019178,2]
[364965577,1749361832940,-409.30432254,0.00019178,2]
[364965578,1749361832951,-405.00323565,0.00019178,2]
[364965579,1749361832961,-444.37394103,0.00019178,2]
[364965580,1749361832972,-433.70871508,0.00019178,2]
[364965581,1749361832982,-447.05405443,0.00019178,2]
[364965582,1749361832993,-440.0,0.00019178,2]
[364965583,1749361833003,-409.21539792,0.00019178,2]
[364965584,1749361833014,-369.19518826,0.00019178,2]
[364965585,1749361833023,-404.42995992,0.00019178,2]
[364965586,1749361833033,-440.0,0.00019178,2]
[364965587,1749361833044,-407.36378751,0.00019178,2]
[364965588,1749361833053,-409.00661626,0.00019178,2]
[364965589,1749361833063,-449.03435197,0.00019178,2]
[364965590,1749361833072,-437.03959782,0.00019178,2]
[364965591,1749361833082,-345.01528248,0.00019178,2]
[364965592,1749361833092,-439.41368731,0.00019178,2]
[364965593,1749361833102,-430.0,0.00019178,2]
[364965594,1749361833112,-442.40230064,0.00019178,2]
[364965595,1749361833123,-457.17363149,0.00019178,2]
[364965596,1749361833135,-430.0,0.00019178,2]
[364965597,1749361833145,-431.75719007,0.00019178,2]
[364965598,1749361833155,-432.58693403,0.00019178,2]
[364965599,1749361833165,-267.31216641,0.00019178,2]
[364965600,1749361833174,-440.7665474,0.00019178,2]
[364965601,1749361833184,-436.68159512,0.00019178,2]
[364965602,1749361833193,-440.0,0.00019178,2]
[364965603,1749361833203,-445.9387551,0.00019178,2]
[364965604,1749361833213,-440.0,0.00019178,2]
[364965605,1749361833223,-440.0,0.00019178,2]
[364965606,1749361833233,-440.0,0.00019178,2]
[364965607,1749361833243,-445.50603033,0.00019178,2]
[364965608,1749361833253,-425.56416826,0.00019178,2]
[364965609,1749361833263,-440.0,0.00019178,2]
[364965610,1749361833273,-440.0,0.00019178,2]
[364965611,1749361833283,-440.0,0.00019178,2]
[364965612,1749361833293,-412.02557043,0.00019178,2]
[364965613,1749361833302,-406.79503389,0.00019178,2]
[364965614,1749361833312,-440.0,0.00019178,2]
[364965615,1749361833324,-441.06767539,0.00019178,2]
[364965616,1749361833334,-295.74477137,0.00019178,2]
[364965617,1749361833345,-440.0,0.00019178,2]
[364965618,1749361833355,-454.62584614,0.00019178,2]
[364965619,1749361833366,-440.0,0.00019178,2]
[364965620,1749361833376,-426.49611107,0.00019178,2]
[364965621,1749361833387,-228.82547283,0.00019178,2]
[364965622,1749361833457,-188.37340859,0.00019178,2]
[364965623,1749361833468,-440.0,0.00019178,2]
[364965624,1749361833479,-440.0,0.00019178,2]
[364965625,1749361833490,-440.0,0.00019178,2]
[364965626,1749361833500,-440.0,0.00019178,2]
[364965627,1749361833510,-440.0,0.00019178,2]
[364965628,1749361833521,-440.0,0.00019178,2]
[364965629,1749361833531,-440.0,0.00019178,2]
[364965630,1749361833541,-440.0,0.00019178,2]
[364965631,1749361833551,-440.0,0.00019178,2]
[364965632,1749361833561,-440.0,0.00019178,2]
[364965633,1749361833571,-440.0,0.00019178,2]
[364965634,1749361833581,-440.0,0.00019178,2]
[364965635,1749361833591,-440.0,0.00019178,2]
[364965636,1749361833601,-412.67648568,0.00019178,2]
[364965637,1749361833612,-440.0,0.00019178,2]
[364965638,1749361833622,-440.0,0.00019178,2]
[364965639,1749361833633,-440.0,0.00019178,2]
[364965640,1749361833643,-440.0,0.00019178,2]
[364965641,1749361833653,-440.0,0.00019178,2]
[364965642,1749361833663,-440.0,0.00019178,2]
[364965643,1749361833673,-440.0,0.00019178,2]
[364965644,1749361833684,-436.38089455,0.00019178,2]
[364965645,1749361833694,-440.0,0.00019178,2]
[364965646,1749361833704,-440.0,0.00019178,2]
[364965647,1749361833714,-440.0,0.00019178,2]
[364965648,1749361833725,-440.0,0.00019178,2]
[364965649,1749361833736,-440.0,0.00019178,2]
[364965650,1749361833752,-440.0,0.00019178,2]
[364965651,1749361833763,-440.0,0.00019178,2]
[364965652,1749361833773,-440.0,0.00019178,2]
[364965653,1749361833784,-500.0,0.00019178,2]
[364965654,1749361833795,-440.0,0.00019178,2]
[364965655,1749361833805,-440.0,0.00019178,2]
[364965656,1749361833814,-440.0,0.00019178,2]
[364965657,1749361833827,-176.44515258,0.00019178,2]
[364965658,1749361833837,-440.0,0.00019178,2]
[364965659,1749361833847,-440.0,0.00019178,2]
[364965660,1749361833857,-423.36100627,0.00019178,2]
[364965661,1749361833867,-414.98312937,0.00019178,2]
[364965662,1749361833877,-440.0,0.00019178,2]
[364965663,1749361833887,-440.0,0.00019178,2]
[364965664,1749361833897,-440.0,0.00019178,2]
[364965665,1749361833907,-440.0,0.00019178,2]
[364965666,1749361833917,-453.44643299,0.00019178,2]
[364965667,1749361833927,-440.0,0.00019178,2]
[364965668,1749361833937,-440.0,0.00019178,2]
[364965669,1749361833947,-247.90608245,0.00019178,2]
[364965670,1749361833957,-440.0,0.00019178,2]
[364965671,1749361833967,-440.0,0.00019178,2]
[364965672,1749361833978,-440.0,0.00019178,2]
[364965673,1749361833991,-446.76107996,0.00019178,2]
[364965674,1749361834002,-440.0,0.00019178,2]
[364965675,1749361834012,-440.0,0.00019178,2]
[364965676,1749361834021,-440.0,0.00019178,2]
[364965677,1749361834031,-440.0,0.00019178,2]
[364965678,1749361834042,-440.0,0.00019178,2]
[364965679,1749361834052,-440.0,0.00019178,2]
[364965680,1749361834062,-151.0,0.00019178,2]
[364965681,1749361834071,-440.0,0.00019178,2]
[364965682,1749361834082,-419.00329191,0.00019178,2]
[364965683,1749361834092,-440.0,0.00019178,2]
[364965684,1749361834101,-448.88724819,0.00019178,2]
[364965685,1749361834111,-430.0,0.00019178,2]
[364965686,1749361834121,-430.0,0.00019178,2]
[364965687,1749361834131,-440.0,0.00019178,2]
[364965688,1749361834141,-423.94547332,0.00019178,2]
[364965689,1749361834151,-151.0,0.00019178,2]
[364965690,1749361834161,-440.0,0.00019178,2]
[364965691,1749361834171,-445.63222661,0.00019178,2]
[364965692,1749361834180,-440.0,0.00019178,2]
[364965693,1749361834191,-440.0,0.00019178,2]
[364965694,1749361834201,-458.32348441,0.00019178,2]
[364965695,1749361834211,-428.30048988,0.00019178,2]
[364965696,1749361834221,-440.0,0.00019178,2]
[364965697,1749361834244,-151.0,0.00019178,2]
[364965698,1749361834256,-440.0,0.00019178,2]
[364965699,1749361834266,-458.78911488,0.00019178,2]
[364965700,1749361834276,-440.0,0.00019178,2]
[364965701,1749361834287,-440.0,0.00019178,2]
[364965702,1749361834297,-440.0,0.00019178,2]
[364965703,1749361834307,-440.0,0.00019178,2]
[364965704,1749361834318,-440.0,0.00019178,2]
[364965705,1749361834328,-420.6513529,0.00019178,2]
[364965706,1749361834339,-417.91262611,0.00019178,2]
[364965707,1749361834349,-440.0,0.00019178,2]
[364965708,1749361834360,-440.0,0.00019178,2]
[364965709,1749361834371,-1000.0,0.00019178,2]
[364965710,1749361834382,-359.86837175,0.00019178,2]
[364965711,1749361834393,-440.0,0.00019178,2]
[364965712,1749361834404,-420.31894876,0.00019178,2]
[364965713,1749361834415,-430.0,0.00019178,2]
[364965714,1749361834426,-440.0,0.00019178,2]
[364965715,1749361834436,-440.0,0.00019178,2]
[364965716,1749361834446,-440.0,0.00019178,2]
[364965717,1749361834456,-455.36603152,0.00019178,2]
[364965718,1749361834467,-438.12037596,0.00019178,2]
[364965719,1749361834479,-484.5678277,0.00019178,2]
[364965720,1749361834489,-444.5203601,0.00019178,2]
[364965721,1749361834499,-440.0,0.00019178,2]
[364965722,1749361834510,-430.0,0.00019178,2]
[364965723,1749361834521,-325.14521156,0.00019178,2]
[364965724,1749361834531,-440.0,0.00019178,2]
[364965725,1749361834541,-449.58008019,0.00019178,2]
[364965726,1749361834553,-449.59523121,0.00019178,2]
[364965727,1749361834563,-348.61021178,0.00019178,2]
[364965728,1749361834574,-431.6,0.00019178,2]
[364965729,1749361834585,-411.20810314,0.00019178,2]
[364965730,1749361834596,-440.0,0.00019178,2]
[364965731,1749361834606,-440.0,0.00019178,2]
[364965732,1749361834616,-430.0,0.00019178,2]
[364965733,1749361834627,-200.97508311,0.00019178,2]
[364965734,1749361834637,-430.0,0.00019178,2]
[364965735,1749361834647,-430.0,0.00019178,2]
[364965736,1749361834657,-424.87500809,0.00019178,2]
[364965737,1749361834667,-500.0,0.00019178,2]
[364965738,1749361834677,-440.0,0.00019178,2]
[364965739,1749361834688,-440.0,0.00019178,2]
[364965740,1749361834698,-454.83665767,0.00019178,2]
[364965741,1749361834708,-440.0,0.00019178,2]
[364965742,1749361834718,-449.17161289,0.00019178,2]
[364965743,1749361834728,-440.0,0.00019178,2]
[364965744,1749361834740,-440.0,0.00019178,2]
[364965745,1749361834751,-438.77161184,0.00019178,2]
[364965746,1749361834761,-440.0,0.00019178,2]
[364965747,1749361834773,-430.0,0.00019178,2]
[364965748,1749361834783,-440.0,0.00019178,2]
[364965749,1749361834793,-461.81919041,0.00019178,2]
[364965750,1749361834803,-440.0,0.00019178,2]
[364965751,1749361834814,-440.0,0.00019178,2]
[364965752,1749361834824,-430.0,0.00019178,2]
[364965753,1749361834834,-440.0,0.00019178,2]
[364965754,1749361834848,-430.0,0.00019178,2]
[364965755,1749361834858,-151.0,0.00019178,2]
[364965756,1749361834868,-440.0,0.00019178,2]
[364965757,1749361834878,-430.0,0.00019178,2]
[364965758,1749361834888,-440.0,0.00019178,2]
[364965759,1749361834898,-440.0,0.00019178,2]
[364965760,1749361834908,-440.0,0.00019178,2]
[364965761,1749361834918,-440.0,0.00019178,2]
[364965762,1749361834929,-411.12322929,0.00019178,2]
[364965763,1749361834939,-412.97171181,0.00019178,2]
[364965764,1749361834949,-430.0,0.00019178,2]
[364965765,1749361834959,-440.0,0.00019178,2]
[364965766,1749361834969,-456.18302326,0.00019178,2]
[364965767,1749361834979,-461.81337477,0.00019178,2]
[364965768,1749361834989,-440.0,0.00019178,2]
[364965769,1749361834999,-430.0,0.00019178,2]
[364965770,1749361835008,-421.72134209,0.00019178,2]
[364965771,1749361835019,-461.71874126,0.00019178,2]
[364965772,1749361835161,-430.0,0.00019178,2]
[364965773,1749361835171,-302.46093651,0.00019178,2]
[364965774,1749361835181,-430.0,0.00019178,2]
[364965775,1749361835191,-440.0,0.00019178,2]
[364965776,1749361835201,-1168.58,0.00019178,2]
[364965777,1749361835211,-433.55950465,0.00019178,2]
[364965778,1749361835220,-151.0,0.00019178,2]
[364965779,1749361835230,-412.02850224,0.00019178,2]
[364965780,1749361835240,-430.0,0.00019178,2]
[364965781,1749361835250,-430.0,0.00019178,2]
[364965782,1749361835259,-448.78779347,0.00019178,2]
[364965783,1749361835269,-412.14937693,0.00019178,2]
[364965784,1749361835279,-440.0,0.00019178,2]
[364965785,1749361835289,-433.77,0.00019178,2]
[364965786,1749361835299,-440.0,0.00019178,2]
[364965787,1749361835308,-151.0,0.00019178,2]
[364965788,1749361835318,-430.0,0.00019178,2]
[364965789,1749361835327,-440.0,0.00019178,2]
[364965790,1749361835338,-585.13198677,0.00019178,2]
[364965791,1749361835348,-444.10087433,0.00019178,2]
[364965792,1749361835358,-440.0,0.00019178,2]
[364965793,1749361835367,-430.0,0.00019178,2]
[364965794,1749361835378,-430.0,0.00019178,2]
[364965795,1749361835387,-440.0,0.00019178,2]
[364965796,1749361835398,-430.0,0.00019178,2]
[364965797,1749361835408,-430.0,0.00019178,2]
[364965798,1749361835419,-430.0,0.00019178,2]
[364965799,1749361835431,-440.0,0.00019178,2]
[364965800,1749361835441,-411.87246256,0.00019178,2]
[364965801,1749361835451,-430.0,0.00019178,2]
[364965802,1749361835461,-430.0,0.00019178,2]
[364965803,1749361835471,-440.0,0.00019178,2]
[364965804,1749361835481,-430.0,0.00019178,2]
[364965805,1749361835491,-402.7727925,0.00019178,2]
[364965806,1749361835501,-440.0,0.00019178,2]
[364965807,1749361835510,-422.797985,0.00019178,2]
[364965808,1749361835521,-463.91,0.00019178,2]
[364965809,1749361835531,-533.43,0.00019178,2]
[364965810,1749361835541,-430.0,0.00019178,2]
[364965811,1749361835551,-412.15048422,0.00019178,2]
[364965812,1749361835560,-440.0,0.00019178,2]
[364965813,1749361835570,-440.0,0.00019178,2]
[364965814,1749361835580,-500.0,0.00019178,2]
[364965815,1749361835590,-430.0,0.00019178,2]
[364965816,1749361835600,-460.64,0.00019178,2]
[364965817,1749361835610,-440.0,0.00019178,2]
[364965818,1749361835619,-442.15745603,0.00019178,2]
[364965819,1749361835629,-411.27567292,0.00019178,2]
[364965820,1749361835638,-440.0,0.00019178,2]
[364965821,1749361835648,-430.0,0.00019178,2]
[364965822,1749361835660,-440.0,0.00019178,2]
[364965823,1749361835669,-430.0,0.00019178,2]
[364965824,1749361835679,-430.0,0.00019178,2]
[364965825,1749361835689,-440.0,0.00019178,2]
[364965826,1749361835698,-440.0,0.00019178,2]
[364965827,1749361835708,-443.61915476,0.00019178,2]
[364965828,1749361835718,-440.0,0.00019178,2]
[364965829,1749361835728,-440.0,0.00019178,2]
[364965830,1749361835740,-440.0,0.00019178,2]
[364965831,1749361835751,-741.76,0.00019178,2]
[364965832,1749361835761,-440.0,0.00019178,2]
[364965833,1749361835771,-440.0,0.00019178,2]
[364965834,1749361835782,-457.89900259,0.00019178,2]
[364965835,1749361835792,-440.0,0.00019178,2]
[364965836,1749361835802,-440.0,0.00019178,2]
[364965837,1749361835812,-440.0,0.00019178,2]
[364965838,1749361835822,-440.0,0.00019178,2]
[364965839,1749361835833,-438.64509605,0.00019178,2]
[364965840,1749361835843,-440.0,0.00019178,2]
[364965841,1749361835853,-440.0,0.00019178,2]
[364965842,1749361835862,-440.0,0.00019178,2]
[364965843,1749361835872,-460.73297825,0.00019178,2]
[364965844,1749361835882,-440.0,0.00019178,2]
[364965845,1749361835891,-440.0,0.00019178,2]
[364965846,1749361835901,-517.3071591,0.00019178,2]
[364965847,1749361835910,-347.86687097,0.00019178,2]
[364965848,1749361835920,-414.64797292,0.00019178,2]
[364965849,1749361835929,-440.0,0.00019178,2]
[364965850,1749361835939,-412.65452935,0.00019178,2]
[364965851,1749361835949,-440.0,0.00019178,2]
[364965852,1749361835959,-440.0,0.00019178,2]
[364965853,1749361835969,-440.0,0.00019178,2]
[364965854,1749361835978,-440.0,0.00019178,2]
[364965855,1749361835988,-440.0,0.00019178,2]
[364965856,1749361835998,-411.91153829,0.00019178,2]
[364965857,1749361836008,-430.0,0.00019178,2]
[364965858,1749361836018,-440.0,0.00019178,2]
[364965859,1749361836029,-430.0,0.00019178,2]
[364965860,1749361836038,-430.0,0.00019178,2]
[364965861,1749361836048,-440.0,0.00019178,2]
[364965862,1749361836057,-451.7312001,0.00019178,2]
[364965863,1749361836068,-354.34021108,0.00019178,2]
[364965864,1749361836078,-430.0,0.00019178,2]
[364965865,1749361836088,-413.44140133,0.00019178,2]
[364965866,1749361836098,-461.29874158,0.00019178,2]
[364965867,1749361836108,-469.08020244,0.00019178,2]
[364965868,1749361836118,-440.0,0.00019178,2]
[364965869,1749361836128,-151.0,0.00019178,2]
[364965870,1749361836138,-151.0,0.00019178,2]
[364965871,1749361836148,-442.2679744,0.00019178,2]
[364965872,1749361836158,-440.0,0.00019178,2]
[364965873,1749361836168,-151.0,0.00019178,2]
[364965874,1749361836178,-440.0,0.00019178,2]
[364965875,1749361836188,-500.0,0.00019178,2]
[364965876,1749361836198,-151.0,0.00019178,2]
[364965877,1749361836208,-500.0,0.00019178,2]
[364965878,1749361836224,-500.0,0.00019178,2]
[364965879,1749361836240,-500.0,0.00019178,2]
[364965880,1749361836256,-430.0,0.00019178,2]
[364965881,1749361836270,-500.0,0.00019178,2]
[364965882,1749361836283,-500.0,0.00019178,2]
[364965883,1749361836295,-500.0,0.00019178,2]
[364965884,1749361836310,-500.0,0.00019178,2]
[364965885,1749361836323,-151.0,0.00019178,2]
[364965886,1749361836337,-152.831415,0.00019178,2]
[364965887,1749361836354,-372.00425119,0.00019178,2]
[364965888,1749361836368,-533.64,0.00019178,2]
[364965889,1749361836385,-401.27672285,0.00019178,2]